bitfinex/quotes_SOLUSD_20220227
["timestamp","ask_amount","ask_price","bid_price","bid_amount"]
[1645941451969,6.07757247,87.946,87.875,43.53371976]
[1645941452170,2.74678921,87.945,87.875,43.53371976]
[1645941453269,3.33078326,87.946,87.875,43.53371976]
[1645941454072,1.55378812,87.945,87.875,43.53371976]
[1645941454769,2.74678921,87.944,87.875,43.53371976]
[1645941455572,1.55378812,87.945,87.875,43.53371976]
[1645941460679,1.55378812,87.945,87.875,49.20371976]
[1645941463785,1.55378812,87.945,87.876,113.5]
[1645941465189,1.55378812,87.946,87.876,113.5]
[1645941468492,1.55378812,87.946,87.875,49.20371976]
[1645941468690,1.55378812,87.946,87.875,43.53371976]
[1645941470193,1.55378812,87.946,87.876,113.5]
[1645941470393,1.55378812,87.946,87.875,43.53371976]
[1645941470595,1.55378812,87.946,87.876,113.5]
[1645941471713,1.55378812,87.946,87.875,43.53371976]
[1645941472716,1.55378812,87.946,87.876,113.5]
[1645941473917,19.44367712,87.946,87.876,113.5]
[1645941474117,1.75984752,87.945,87.876,113.5]
[1645941474720,1.55378812,87.944,87.876,113.5]
[1645941476519,1.55378812,87.944,87.877,2.74678921]
[1645941476720,1.55378812,87.944,87.878,113.5]
[1645941477121,1.55378812,87.944,87.879,2.74678921]
[1645941478519,1.55378812,87.944,87.881,113.5]
[1645941478722,1.55378812,87.944,87.882,0.25]
[1645941478920,0.55378812,87.947,87.883,113.5]
[1645941479123,0.55378812,87.947,87.885,113.5]
[1645941479321,1.42659899,88.0,87.901,113.5]
[1645941479521,1.42659899,88.0,87.911,113.5]
[1645941479921,14.24251513,87.999,87.913,113.5]
[1645941480223,1.52988441,87.998,87.913,113.5]
[1645941480521,1.52988441,87.998,87.915,113.5]
[1645941480721,1.52988441,87.998,87.931,113.5]
[1645941480921,1.52988441,87.998,87.931,122.26]
[1645941482427,1.52988441,87.998,87.916,2.74678921]
[1645941482622,1.52988441,87.998,87.932,0.99991188]
[1645941482826,2.74678921,87.997,87.932,0.99991188]
[1645941483022,4.547,87.996,87.932,0.99991188]
[1645941483223,2.74678921,87.997,87.932,0.99991188]
[1645941483422,2.74678921,87.995,87.932,0.99991188]
[1645941484523,24.29013119,87.994,87.932,0.99991188]
[1645941484723,16.57,87.99,87.932,0.99991188]
[1645941484922,6.2998485,87.989,87.932,0.99991188]
[1645941485122,1.71284303,87.987,87.932,0.99991188]
[1645941485322,6.25984303,87.987,87.932,0.99991188]
[1645941485722,2.74678921,87.986,87.932,0.99991188]
[1645941486322,2.74678921,87.986,87.87,17.0656]
[1645941486323,2.74678921,87.986,87.899,0.99991188]
[1645941486523,4.548,87.985,87.899,0.99991188]
[1645941486725,1.42271518,87.979,87.899,0.99991188]
[1645941487123,2.74678921,87.978,87.899,0.99991188]
[1645941487524,1.42271518,87.979,87.899,0.99991188]
[1645941487723,2.74678921,87.978,87.899,0.99991188]
[1645941489326,2.74678921,87.978,87.886,0.99991188]
[1645941490529,2.74678921,87.978,87.886,114.49991188]
[1645941493033,1.42271518,87.979,87.886,114.49991188]
[1645941493432,1.42271518,87.979,87.886,141.85113428]
[1645941493633,1.42449404,87.987,87.89,9.23491116]
[1645941493832,1.42449404,87.987,87.891,113.5]
[1645941494033,2.74678921,87.986,87.891,114.49991188]
[1645941494735,2.74678921,87.986,87.891,0.99991188]
[1645941495738,2.74678921,87.986,87.891,114.49991188]
[1645941497241,2.74678921,87.986,87.893,113.5]
[1645941497643,2.74678921,87.986,87.894,0.99991188]
[1645941499043,1.42449404,87.987,87.894,0.99991188]
[1645941499545,1.42449404,87.987,87.895,113.5]
[1645941499744,1.42449404,87.987,87.895,153.88069974]
[1645941499943,4.548,88.019,87.895,153.88069974]
[1645941499944,2.74678921,88.013,87.897,113.5]
[1645941500145,1.87455104,88.012,87.911,113.5]
[1645941500345,1.5606219,88.028,87.912,2.62458939]
[1645941500546,1.5606219,88.028,87.914,2.4402638]
[1645941500746,1.5606219,88.028,87.915,0.25]
[1645941500947,17.74753521,88.027,87.93,16.57]
[1645941501147,1.74633647,88.026,87.931,136.0629]
[1645941501648,1.74633647,88.026,87.932,13.73711004]
[1645941501849,1.74633647,88.026,87.933,113.5]
[1645941502246,1.74633647,88.026,87.933,116.24678921]
[1645941502448,1.74633647,88.026,87.935,113.5]
[1645941502649,1.74633647,88.026,87.941,113.5]
[1645941502848,1.74633647,88.026,87.943,113.5]
[1645941503247,1.76190103,88.042,87.944,2.49665253]
[1645941503447,1.45070116,88.047,87.945,136.7761]
[1645941503649,1.45070116,88.047,87.945,176.79746538]
[1645941503848,1.45070116,88.047,87.947,113.5]
[1645941504046,1.45070116,88.047,87.951,113.5]
[1645941504247,17.89977328,88.046,87.951,121.14]
[1645941504447,17.89977328,88.046,87.952,2.45718673]
[1645941504649,17.89977328,88.046,87.953,116.29517741]
[1645941505050,17.89977328,88.046,87.953,119.04196662]
[1645941505250,17.89977328,88.046,87.954,2.74678921]
[1645941506466,1.46719543,88.045,87.954,2.74678921]
[1645941506966,1.46719543,88.045,87.955,0.99991188]
[1645941507367,1.46719543,88.045,87.956,2.74678921]
[1645941507666,1.46719543,88.045,87.961,113.5]
[1645941508069,1.46719543,88.045,87.962,2.74678921]
[1645941509372,2.74678921,88.044,87.955,0.99991188]
[1645941509575,16.57,88.04,87.955,0.99991188]
[1645941509774,6.17942904,88.039,87.955,0.99991188]
[1645941509971,8.92621825,88.039,87.952,0.99991188]
[1645941510171,4.38121825,88.039,87.952,0.99991188]
[1645941510371,1.63442904,88.039,87.952,0.99991188]
[1645941510572,1.4876033,88.045,87.952,0.99991188]
[1645941510773,2.74678921,88.038,87.954,113.5]
[1645941513272,2.74678921,88.038,87.953,47.02666749]
[1645941513473,2.74678921,88.038,87.955,0.99991188]
[1645941514274,1.4876033,88.045,87.955,0.99991188]
[1645941516978,2.74678921,88.044,87.955,0.99991188]
[1645941517177,1.4876033,88.045,87.955,0.99991188]
[1645941517379,25.19890797,88.045,87.955,0.99991188]
[1645941517579,1.64504256,88.044,87.955,0.99991188]
[1645941520378,2.74678921,88.043,87.955,0.99991188]
[1645941520783,2.74678921,88.043,87.954,0.99991188]
[1645941521180,1.64504256,88.044,87.954,114.49991188]
[1645941521879,1.64504256,88.044,87.954,0.99991188]
[1645941522080,1.64504256,88.044,87.955,23.5094]
[1645941523181,1.64504256,88.044,87.956,113.5]
[1645941523781,1.64504256,88.044,87.957,0.99991188]
[1645941524985,1.64504256,88.044,87.971,113.5]
[1645941526085,1.64504256,88.044,87.961,113.5]
[1645941526486,1.64504256,88.044,87.962,2.74678921]
[1645941526887,1.64504256,88.044,87.962,3.74670109]
[1645941527288,1.64504256,88.044,87.963,2.74678921]
[1645941529992,1.64504256,88.044,87.964,0.99991188]
[1645941530393,2.74678921,88.043,87.964,0.99991188]
[1645941533197,2.74678921,88.043,87.957,0.99991188]
[1645941534998,16.57,88.04,87.957,0.99991188]
[1645941535200,1.62601112,88.039,87.957,0.99991188]
[1645941535402,4.545,88.038,87.957,0.99991188]
[1645941535599,9.10309338,88.038,87.957,0.99991188]
[1645941535800,1.58854336,88.036,87.957,0.99991188]
[1645941536001,6.13354336,88.036,87.957,0.99991188]
[1645941536199,2.74678921,88.035,87.949,54.08619925]
[1645941536402,16.57,88.03,87.949,54.08619925]
[1645941536602,1.90286365,88.029,87.949,54.08619925]
[1645941536809,4.64965286,88.029,87.949,54.08619925]
[1645941537003,1.90286365,88.029,87.949,54.08619925]
[1645941537202,2.74678921,88.028,87.949,54.08619925]
[1645941538005,1.90286365,88.029,87.95,137.3019]
[1645941538202,23.309,88.037,87.95,137.3019]
[1645941538203,1.75496701,88.036,87.95,140.04868921]
[1645941539526,2.74678921,88.035,87.95,140.04868921]
[1645941539726,2.74678921,88.035,87.951,0.99991188]
[1645941540129,1.75496701,88.036,87.951,0.99991188]
[1645941544634,15.23007337,88.035,87.951,0.99991188]
[1645941544833,16.57,88.02,87.951,0.99991188]
[1645941545032,1.87729342,88.019,87.942,0.99991188]
[1645941545234,48.80989342,88.019,87.89,16.57]
[1645941545432,32.72419101,88.018,87.867,48.5668]
[1645941545644,114.94741053,88.017,87.843,22.46409851]
[1645941545836,207.14,88.01,87.857,17.3986]
[1645941546032,16.57,88.0,87.847,5.92655689]
[1645941546232,30.22803313,87.999,87.847,5.92655689]
[1645941546433,1.79765298,87.998,87.848,43.89564996]
[1645941546633,17.0707,87.97,87.85,17.0671]
[1645941546834,54.51829396,87.969,87.85,17.0671]
[1645941547035,1.76749629,87.968,87.85,17.0671]
[1645941547233,30.01610339,87.968,87.85,17.0671]
[1645941547532,8.94430556,87.967,87.849,25.21088772]
[1645941547733,1.85307896,87.966,87.849,25.21088772]
[1645941547935,4.55,87.965,87.849,25.21088772]
[1645941548136,1.84125789,87.959,87.849,25.21088772]
[1645941548334,16.57,87.95,87.849,25.21088772]
[1645941548535,1.82887047,87.948,87.849,25.21088772]
[1645941548934,1.82887047,87.948,87.85,22.46409851]
[1645941552036,1.82887047,87.948,87.851,20.57666785]
[1645941552439,1.82887047,87.948,87.852,22.46409851]
[1645941556143,1.82887047,87.948,87.854,113.5]
[1645941557643,1.82887047,87.948,87.855,161.54105706]
[1645941557842,1.82887047,87.948,87.861,113.5]
[1645941558042,1.82887047,87.948,87.863,113.5]
[1645941559946,1.82887047,87.948,87.862,43.65608855]
[1645941562345,1.82887047,87.948,87.863,113.5]
[1645941564150,1.82887047,87.948,87.862,43.65608855]
[1645941564347,2.74678921,87.947,87.862,43.65608855]
[1645941565649,1.82887047,87.948,87.862,43.65608855]
[1645941566452,2.74678921,87.947,87.862,43.65608855]
[1645941566651,1.82887047,87.948,87.862,43.65608855]
[1645941566949,2.74678921,87.947,87.862,43.65608855]
[1645941568250,1.82887047,87.948,87.862,43.65608855]
[1645941569855,2.74678921,87.947,87.862,43.65608855]
[1645941570057,1.82887047,87.948,87.862,43.65608855]
[1645941570562,2.74678921,87.947,87.862,43.65608855]
[1645941573361,2.74678921,87.947,87.855,24.7176]
[1645941574360,2.74678921,87.947,87.856,51.44271267]
[1645941578673,25.50181789,87.946,87.856,51.44271267]
[1645941578871,1.79912621,87.945,87.856,51.44271267]
[1645941579070,1.89035149,87.939,87.856,51.44271267]
[1645941579874,2.74678921,87.938,87.856,51.44271267]
[1645941580275,1.87922806,87.936,87.856,51.44271267]
[1645941580684,2.74678921,87.935,87.856,51.44271267]
[1645941587496,1.87922806,87.936,87.856,51.44271267]
[1645941591598,2.74678921,87.935,87.856,51.44271267]
[1645941591804,2.74678921,87.935,87.846,4.55]
[1645941592000,50.25797031,87.934,87.825,4.551]
[1645941592199,16.57,87.93,87.838,17.3024]
[1645941592399,1.88571011,87.929,87.838,17.3024]
[1645941592601,4.63249932,87.929,87.838,17.3024]
[1645941592801,6.0804566,87.928,87.839,54.49073602]
[1645941592999,1.8240378,87.927,87.839,54.49073602]
[1645941593199,1.71160745,87.925,87.839,54.49073602]
[1645941593399,16.57,87.92,87.839,54.49073602]
[1645941593599,1.76874833,87.919,87.839,54.49073602]
[1645941594200,2.74678921,87.918,87.838,17.3024]
[1645941594401,2.74678921,87.918,87.825,24.9829]
[1645941594603,6.15600873,87.917,87.825,24.9829]
[1645941594901,17.0822,87.91,87.825,24.9829]
[1645941595100,1.71599308,87.909,87.825,24.9829]
[1645941595307,4.46278229,87.909,87.825,24.9829]
[1645941595503,2.74678921,87.908,87.801,23.3181]
[1645941595702,4.551,87.907,87.801,23.3181]
[1645941595902,46.1554878,87.907,87.801,23.3181]
[1645941596101,19.93245635,87.906,87.801,23.3181]
[1645941596310,6.00936625,87.905,87.801,23.3181]
[1645941596503,17.0862,87.89,87.801,23.3181]
[1645941596703,1.91689342,87.889,87.801,23.3181]
[1645941596905,8.87689342,87.889,87.801,23.3181]
[1645941597104,6.42353133,87.888,87.78,16.9729]
[1645941597306,84.06959085,87.888,87.78,16.9729]
[1645941597505,16.92397099,87.887,87.78,16.9729]
[1645941597807,46.29290292,87.886,87.765,54.84393751]
[1645941598004,47.38622831,87.886,87.766,4.554]
[1645941598204,42.83222831,87.885,87.766,4.554]
[1645941598404,6.32952358,87.884,87.767,32.08679719]
[1645941598605,17.0902,87.87,87.767,32.08679719]
[1645941598806,46.4588,87.869,87.766,32.08679719]
[1645941599006,1.91910112,87.868,87.766,32.08679719]
[1645941599506,2.74678921,87.867,87.766,32.08679719]
[1645941601108,25.50181789,87.866,87.767,4.554]
[1645941601307,1.4854465,87.865,87.767,4.554]
[1645941601507,1.89147596,87.859,87.768,32.08679719]
[1645941602109,1.89147596,87.859,87.766,32.08679719]
[1645941603711,2.74678921,87.858,87.766,32.08679719]
[1645941603916,4.42489003,87.858,87.766,32.08679719]
[1645941604210,1.67810082,87.858,87.765,54.84393751]
[1645941604411,1.77784182,87.856,87.765,54.84393751]
[1645941604812,2.74678921,87.855,87.766,32.08989878]
[1645941605613,2.74678921,87.855,87.765,54.84393751]
[1645941605815,2.74678921,87.855,87.758,48.5743]
[1645941606016,50.25797031,87.854,87.758,48.5743]
[1645941606216,16.57,87.84,87.733,24.9372]
[1645941606417,49.75741638,87.839,87.733,24.9372]
[1645941606619,1.8531961,87.838,87.733,24.9372]
[1645941606840,1.8531961,87.838,87.734,80.07054851]
[1645941607041,29.89587922,87.837,87.734,80.07054851]
[1645941607240,1.93161771,87.836,87.734,80.07054851]
[1645941607440,4.556,87.835,87.735,32.09743141]
[1645941607641,16.57,87.82,87.734,47.9731171]
[1645941607841,1.6123713,87.819,87.734,47.9731171]
[1645941608441,26.53618921,87.818,87.734,47.9731171]
[1645941608742,4.57243082,87.817,87.734,47.9731171]
[1645941609141,2.74678921,87.816,87.734,47.9731171]
[1645941609540,1.82564161,87.817,87.734,47.9731171]
[1645941609940,2.74678921,87.816,87.734,47.9731171]
[1645941612244,19.87518921,87.816,87.734,47.9731171]
[1645941612445,1.79822866,87.815,87.734,47.9731171]
[1645941612643,16.57,87.8,87.734,47.9731171]
[1645941612843,25.05553274,87.799,87.734,47.9731171]
[1645941613044,1.47007747,87.798,87.734,47.9731171]
[1645941613848,1.47007747,87.798,87.733,24.9372]
[1645941614643,2.74678921,87.797,87.722,24.5233]
[1645941617546,26.55064243,87.796,87.71,23.6211]
[1645941617746,17.1055,87.79,87.71,22.6211]
[1645941617947,16.57,87.78,87.71,22.6211]
[1645941618147,25.82098416,87.779,87.71,22.6211]
[1645941618350,1.7200811,87.778,87.71,22.6211]
[1645941618750,4.46687031,87.778,87.71,22.6211]
[1645941618952,2.74678921,87.777,87.71,22.6211]
[1645941619654,1.7200811,87.778,87.71,22.6211]
[1645941621357,2.74678921,87.794,87.711,2.74678921]
[1645941621560,1.49475154,87.802,87.712,4.558]
[1645941621758,1.49475154,87.802,87.712,15.25732893]
[1645941621957,1.83103806,87.822,87.74,9.83138448]
[1645941622158,24.99584243,87.837,87.741,45.86302509]
[1645941622360,1.49642793,87.858,87.742,2.67736621]
[1645941622557,1.49642793,87.858,87.745,2.30264074]
[1645941622758,1.49642793,87.858,87.751,115.85206943]
[1645941622958,1.49642793,87.858,87.752,2.56243459]
[1645941623157,47.4441,87.859,87.752,2.56243459]
[1645941623356,1.43265831,87.877,87.752,2.56243459]
[1645941623357,1.62115775,87.876,87.754,2.28106769]
[1645941623560,2.74678921,87.885,87.756,113.5]
[1645941623758,2.74678921,87.885,87.771,169.85689194]
[1645941623958,1.42838508,87.887,87.782,2.65780388]
[1645941624558,1.42838508,87.887,87.783,2.74678921]
[1645941625461,1.45164945,87.885,87.78,33.6528]
[1645941625860,46.42706186,87.884,87.78,33.6528]
[1645941626064,1.8378664,87.883,87.78,33.6528]
[1645941626262,29.19483466,87.883,87.78,50.683]
[1645941626461,1.67917648,87.882,87.78,50.683]
[1645941626661,16.57,87.88,87.78,33.6528]
[1645941626863,1.4957851,87.879,87.78,33.6528]
[1645941627360,4.26124979,87.878,87.78,33.6528]
[1645941627563,28.87142884,87.878,87.78,33.6528]
[1645941627763,28.94888611,87.877,87.78,33.6528]
[1645941627962,24.9472164,87.876,87.78,33.6528]
[1645941628162,1.84310074,87.875,87.78,147.1528]
[1645941628361,1.84310074,87.875,87.781,3.03775017]
[1645941628565,4.58988995,87.875,87.781,3.03775017]
[1645941630667,1.89251285,87.885,87.782,116.24678921]
[1645941630867,24.61017905,87.891,87.783,3.15634756]
[1645941631071,1.50873412,87.905,87.786,113.5]
[1645941631268,1.50873412,87.905,87.801,49.98867406]
[1645941631466,1.39929288,87.903,87.802,23.2901]
[1645941631665,1.39929288,87.903,87.803,113.5]
[1645941632985,1.39929288,87.903,87.805,113.5]
[1645941633164,1.39929288,87.903,87.804,5.72326566]
[1645941633165,23.9603,87.904,87.811,113.5]
[1645941633365,1.66591058,87.914,87.811,113.5]
[1645941633564,1.66591058,87.914,87.82,17.0759]
[1645941633766,1.66591058,87.914,87.821,49.5329274]
[1645941633965,1.71771089,87.914,87.821,49.5329274]
[1645941634366,1.62303651,87.912,87.821,49.5329274]
[1645941634967,27.23996497,87.911,87.821,49.5329274]
[1645941635167,51.85014402,87.911,87.821,49.5329274]
[1645941635568,1.82453189,87.91,87.821,49.5329274]
[1645941635768,4.5713211,87.91,87.821,49.5329274]
[1645941636168,2.74678921,87.909,87.821,49.5329274]
[1645941636770,1.84457309,87.907,87.821,49.5329274]
[1645941637170,2.74678921,87.906,87.821,49.5329274]
[1645941637370,2.74678921,87.906,87.822,24.3382]
[1645941641781,1.84457309,87.907,87.822,24.3382]
[1645941643582,2.74678921,87.906,87.822,24.3382]
[1645941643984,1.84457309,87.907,87.822,24.3382]
[1645941644884,4.5913623,87.907,87.822,24.3382]
[1645941645686,1.84457309,87.907,87.822,24.3382]
[1645941649205,4.5913623,87.907,87.822,24.3382]
[1645941649405,1.84457309,87.907,87.822,28.8892]
[1645941650106,1.84457309,87.907,87.823,113.5]
[1645941650306,21.6296,87.93,87.824,2.70311538]
[1645941650307,4.551,87.93,87.824,2.70311538]
[1645941650508,1.42199882,87.931,87.825,4.551]
[1645941650911,1.42199882,87.931,87.831,113.5]
[1645941651110,1.42199882,87.931,87.833,113.5]
[1645941651308,1.42199882,87.931,87.832,7.11938127]
[1645941651309,1.42199882,87.931,87.835,113.5]
[1645941651512,1.42199882,87.931,87.837,113.5]
[1645941651709,1.42199882,87.931,87.839,113.5]
[1645941652110,22.6661,87.932,87.841,113.5]
[1645941652310,22.6661,87.932,87.843,113.5]
[1645941652512,1.58028299,87.941,87.86,130.5667]
[1645941652713,26.98565728,88.046,87.86,130.5667]
[1645941652714,1.80384403,87.946,87.861,76.05603045]
[1645941652912,1.70313871,87.969,87.862,116.25536956]
[1645941653112,1.70313871,87.969,87.864,113.5]
[1645941653312,1.65282838,87.976,87.865,2.29104092]
[1645941653711,9.75813755,87.976,87.865,2.74678921]
[1645941653912,8.82085666,87.975,87.865,2.74678921]
[1645941654112,16.57,87.97,87.865,2.74678921]
[1645941654312,1.60587299,87.969,87.865,2.74678921]
[1645941654712,22.70351238,87.968,87.865,2.74678921]
[1645941654915,1.58063675,87.967,87.865,2.74678921]
[1645941655317,33.09780917,87.966,87.865,2.74678921]
[1645941655513,33.09780917,87.966,87.863,22.8172]
[1645941655514,5.95858483,87.965,87.863,22.8172]
[1645941655715,1.40520492,87.964,87.863,22.8172]
[1645941655914,1.52366231,87.949,87.863,22.8172]
[1645941656114,1.75299848,87.947,87.863,22.8172]
[1645941656714,1.75299848,87.947,87.865,113.5]
[1645941656915,48.0454,87.948,87.864,49.37778206]
[1645941657315,49.68664779,87.948,87.866,2.74678921]
[1645941657516,48.0454,87.948,87.866,2.74678921]
[1645941657716,1.80230896,87.947,87.866,2.74678921]
[1645941658116,1.64132571,87.969,87.866,2.74678921]
[1645941658316,4.55,87.975,87.866,2.74678921]
[1645941658317,48.8907,87.975,87.866,2.74678921]
[1645941658518,1.92859709,87.974,87.866,2.74678921]
[1645941659319,2.74678921,87.973,87.866,2.74678921]
[1645941659919,2.24678921,87.973,87.866,2.74678921]
[1645941660121,1.92859709,87.974,87.866,2.74678921]
[1645941660525,1.92859709,87.974,87.87,130.07]
[1645941660922,1.92859709,87.974,87.871,2.74678921]
[1645941661323,1.92859709,87.974,87.872,23.5999]
[1645941661722,1.92859709,87.974,87.873,2.74678921]
[1645941662822,1.92859709,87.974,87.873,116.24678921]
[1645941663225,1.92859709,87.974,87.874,2.74678921]
[1645941664023,1.92859709,87.974,87.876,113.5]
[1645941664423,1.92859709,87.974,87.877,2.74678921]
[1645941664622,1.92859709,87.974,87.879,113.5]
[1645941664822,1.92859709,87.974,87.878,60.65862443]
[1645941664823,1.92859709,87.974,87.881,113.5]
[1645941665023,1.92859709,87.974,87.882,0.25]
[1645941665223,1.92859709,87.974,87.883,113.5]
[1645941665423,1.92859709,87.974,87.884,0.25]
[1645941665623,1.92859709,87.974,87.885,113.5]
[1645941665826,1.92859709,87.974,87.884,26.38518921]
[1645941665827,2.74678921,88.009,87.903,113.5]
[1645941666024,1.54429434,88.019,87.905,113.5]
[1645941666425,1.54429434,88.019,87.91,130.07]
[1645941666826,1.54429434,88.019,87.911,2.74678921]
[1645941667026,4.29108355,88.019,87.911,2.74678921]
[1645941668026,1.54429434,88.019,87.911,2.74678921]
[1645941668224,1.54429434,88.019,87.912,113.5]
[1645941668626,1.54429434,88.019,87.914,113.5]
[1645941669025,1.54429434,88.019,87.916,113.5]
[1645941669227,1.54429434,88.019,87.921,113.5]
[1645941669627,1.54429434,88.019,87.922,2.74678921]
[1645941670028,2.74678921,88.053,87.923,178.8457519]
[1645941670233,2.74678921,88.053,87.934,2.1]
[1645941670428,1.8094897,88.075,87.944,2.1]
[1645941670629,1.8094897,88.075,87.946,113.5]
[1645941670833,1.8094897,88.075,87.961,113.5]
[1645941671031,14.33833692,88.074,87.971,113.5]
[1645941671229,1.43677936,88.073,87.972,2.59231534]
[1645941671431,1.43677936,88.073,87.972,28.0472887]
[1645941671629,1.43677936,88.073,87.973,116.29276025]
[1645941671833,1.43677936,88.073,87.991,113.5]
[1645941672031,1.43677936,88.073,87.993,113.5]
[1645941672428,1.43677936,88.073,87.994,2.74678921]
[1645941673431,1.43677936,88.073,87.993,118.043]
[1645941673633,2.74678921,88.072,87.993,113.5]
[1645941675031,1.43677936,88.073,87.993,113.5]
[1645941675530,1.43677936,88.073,87.992,50.12191094]
[1645941675731,1.43677936,88.073,87.993,113.5]
[1645941675932,1.43677936,88.073,87.994,4.543]
[1645941676134,1.75232624,88.075,87.994,4.543]
[1645941677435,48.4428,88.076,88.001,113.5]
[1645941678039,48.4428,88.076,88.002,4.543]
[1645941680139,50.31696172,88.076,88.002,4.543]
[1645941680340,50.31696172,88.076,88.001,113.5]
[1645941680743,50.31696172,88.076,88.002,4.543]
[1645941682767,48.4428,88.076,88.002,4.543]
[1645941682968,1.82727058,88.075,88.0,16.57]
[1645941683166,4.57405979,88.075,87.992,50.12191094]
[1645941683367,25.46687408,88.074,87.992,50.12191094]
[1645941683567,1.6208062,88.073,87.974,24.3874]
[1645941683771,28.02756148,88.073,87.974,24.3874]
[1645941683968,27.9519719,88.072,87.974,24.3874]
[1645941684168,16.57,88.07,87.974,24.3874]
[1645941684367,1.54136553,88.069,87.974,24.3874]
[1645941684567,27.94812081,88.069,87.975,48.59129848]
[1645941684768,1.58954489,88.068,87.975,48.59129848]
[1645941684968,4.3363341,88.068,87.975,48.59129848]
[1645941685170,2.74678921,88.067,87.975,48.59129848]
[1645941685369,1.45364667,88.066,87.974,24.3874]
[1645941685568,1.70978021,88.064,87.974,24.3874]
[1645941685970,2.74678921,88.063,87.974,24.3874]
[1645941686471,39.16825819,88.062,87.974,69.65758587]
[1645941686672,1.51493112,88.061,87.974,69.65758587]
[1645941686872,1.51493112,88.061,87.974,45.27018587]
[1645941687072,22.72008487,88.06,87.961,23.4024]
[1645941687472,1.49964382,88.059,87.961,23.4024]
[1645941688073,1.49964382,88.059,87.951,23.0824]
[1645941688074,2.74678921,88.058,87.951,23.0824]
[1645941688277,13.64166775,88.058,87.958,47.18060902]
[1645941688474,1.89453255,88.057,87.958,47.18060902]
[1645941688672,4.64132176,88.057,87.958,47.18060902]
[1645941688874,2.74678921,88.056,87.958,47.18060902]
[1645941689273,13.64166775,88.056,87.958,47.18060902]
[1645941689573,4.29892699,88.055,87.958,47.18060902]
[1645941689974,1.8183895,88.053,87.958,47.18060902]
[1645941690376,11.76263189,88.052,87.958,47.18060902]
[1645941690575,1.46092658,88.051,87.958,47.18060902]
[1645941690774,4.20771579,88.051,87.958,47.18060902]
[1645941691175,2.74678921,88.05,87.958,47.18060902]
[1645941696181,9.01584268,88.049,87.958,47.18060902]
[1645941696381,22.8667,88.048,87.958,47.18060902]
[1645941696582,1.62281639,88.047,87.958,47.18060902]
[1645941696781,4.3696056,88.047,87.958,47.18060902]
[1645941699483,4.3696056,88.047,87.959,113.5]
[1645941699883,1.62281639,88.047,87.959,113.5]
[1645941700083,1.62281639,88.047,87.961,113.5]
[1645941700513,1.62281639,88.047,87.963,113.5]
[1645941700983,1.62281639,88.047,87.965,113.5]
[1645941701186,1.62281639,88.047,87.97,130.07]
[1645941703286,1.62281639,88.047,87.97,16.57]
[1645941707291,1.62281639,88.047,87.97,130.07]
[1645941707488,1.62281639,88.047,87.97,16.57]
[1645941709188,1.62281639,88.047,87.97,130.07]
[1645941709388,1.62281639,88.047,87.97,16.57]
[1645941710692,1.62281639,88.047,87.971,113.5]
[1645941711293,1.62281639,88.047,87.972,2.99678921]
[1645941711492,1.62576858,88.089,87.972,2.99678921]
[1645941711692,49.2083,88.089,87.973,116.24678921]
[1645941711892,1.43148022,88.088,87.973,153.6758698]
[1645941712093,1.43148022,88.088,87.974,2.74678921]
[1645941712293,1.43148022,88.088,87.975,113.5]
[1645941712491,1.43148022,88.088,87.981,113.5]
[1645941712692,1.43148022,88.088,87.98,17.0435]
[1645941712693,2.74678921,88.087,87.993,113.5]
[1645941713394,2.74678921,88.087,87.995,113.5]
[1645941713593,1.43148022,88.088,87.995,113.5]
[1645941713793,1.43148022,88.088,88.0,16.57]
[1645941715793,1.43148022,88.088,88.001,113.5]
[1645941716895,1.43148022,88.088,88.0,16.57]
[1645941717399,2.74678921,88.087,88.0,16.57]
[1645941717598,2.74678921,88.087,87.992,59.71473217]
[1645941717796,43.36902671,88.086,87.992,59.71473217]
[1645941717997,1.92676368,88.085,87.992,59.71473217]
[1645941718198,16.57,88.08,87.992,59.71473217]
[1645941718398,1.71175515,88.079,87.992,59.71473217]
[1645941718598,17.23599734,88.079,87.992,59.71473217]
[1645941718897,4.36060539,88.078,87.992,59.71473217]
[1645941719297,2.74678921,88.077,87.992,59.71473217]
[1645941719499,26.40675528,88.077,87.992,59.71473217]
[1645941719699,24.2258,88.076,87.992,59.71473217]
[1645941719902,1.67381147,88.075,87.992,59.71473217]
[1645941720102,4.42060068,88.075,87.992,59.71473217]
[1645941720300,28.08056675,88.075,87.97,17.0461]
[1645941720504,1.5333526,88.073,87.965,24.8451]
[1645941720900,26.40675528,88.072,87.965,24.8451]